{"text_format":"1","workbook":"xlsx","n_sheets":2,"sheets":["Расчет","Медикаменты"],"not_rendered":{"charts":0,"images":2,"macros":1,"external_links":0,"defined_names":5,"comments":0,"pivot_tables":0},"unopened":[],"bounds":{"document_bytes":16777216,"sheet_cells":100000,"rows_first":2000,"rows_last":500,"rows_between":2000,"halvings":0,"cell_chars":16384,"cell_head_chars":4096},"cells_cut":0,"cells_raw":0,"read":"whole","date_system":"1900"}

{"sheet":"Расчет","index":0,"n_rows":12,"n_cols":19,"rows_kept":12,"cut":false,"hidden":false,"merged":[[0,2,0,15]]}
[null,null,"Система учета медикаментов ОГАУЗ \"Иркутская городская десткая поликлиника № 2\""]
[]
[]
[null,null,null,null,{"$f":"IF(ISERROR(VLOOKUP(\"ДОСТАВКА ПРОСРОЧЕНА!\",Главная_tb[Информация],1,)=\"ДОСТАВКА ПросроченА!\"),\"\",\"Есть заказы с просроченной доставкой!\")","v":""}]
[]
[]
[]
[null,null,1,2,3,4,5,6,7,8,9,10,11,12,13,14,15]
[null,null,"Дата","Наименование","Операция","Место","Выбор поставщика","Информация","Заказано","Дата поставки","Номер акта","Остаток на складе","Приход","Расход","Остаток","Кому выдано","Единицы"]
[null,null,"2018-07-16","Адреналин гидрохлорид (р-р, 0,1%, 1 мл.)","Начальный остаток","Склад",0,{"$f":"IF(Главная_tb[[#This Row],[Операция]]=\"Заказано у поставщика\",IF(Главная_tb[[#This Row],[Дата поставки]]<TODAY(),\"Доставка просрочена!\",\"Доставка в пути!\"),IF(Главная_tb[[#This Row],[Операция]]=\"Получено от поставщика\",\"Доставка получена\",\"\"))","v":""},null,null,null,{"$f":"IF(L7=\"\",0,IF(ISERROR(INDEX($D$9:D9,MATCH(D10&F10,$D$9:D9&$F$9:F9,),1)),0,LOOKUP(,-1/(D10=$D$9:D9)/($F$9:F9=F10),$O$9:O9)))","v":0},500,null,{"$f":"L10+Главная_tb[[#This Row],[Приход]]-Главная_tb[[#This Row],[Расход]]","v":500},null,null,null,{"$f":"IF(E10<>\"Заказано у поставщика\",\"\",IFERROR(IF(MATCH(D10&G10&\"Получено от поставщика\",D13:D1988&G13:G1988&E13:E1988,),\"Доставка получена!\"),IF(Главная_tb[[#This Row],[Дата поставки]],IF(Главная_tb[[#This Row],[Дата поставки]]<TODAY(),\"Доставка просрочена!\",\"Доставка в пути!\"),\"\")))","v":""}]
[null,null,"2018-07-19","Бинт (нест.)","Начальный остаток","Склад",null,{"$f":"IF(Главная_tb[[#This Row],[Операция]]=\"Заказано у поставщика\",IF(Главная_tb[[#This Row],[Дата поставки]]<TODAY(),\"Доставка просрочена!\",\"Доставка в пути!\"),IF(Главная_tb[[#This Row],[Операция]]=\"Получено от поставщика\",\"Доставка получена\",\"\"))","v":""},null,null,null,{"$f":"IF(L8=\"\",0,IF(ISERROR(INDEX($D$9:D10,MATCH(D11&F11,$D$9:D10&$F$9:F10,),1)),0,LOOKUP(,-1/(D11=$D$9:D10)/($F$9:F10=F11),$O$9:O10)))","v":0},102,null,{"$f":"L11+Главная_tb[[#This Row],[Приход]]-Главная_tb[[#This Row],[Расход]]","v":102}]
[null,null,"2018-07-19","Бинт (нест.)","Начальный остаток","ДС",null,{"$f":"IF(Главная_tb[[#This Row],[Операция]]=\"Заказано у поставщика\",IF(Главная_tb[[#This Row],[Дата поставки]]<TODAY(),\"Доставка просрочена!\",\"Доставка в пути!\"),IF(Главная_tb[[#This Row],[Операция]]=\"Получено от поставщика\",\"Доставка получена\",\"\"))","v":""},null,null,null,{"$f":"IF(L9=\"\",0,IF(ISERROR(INDEX($D$9:D11,MATCH(D12&F12,$D$9:D11&$F$9:F11,),1)),0,LOOKUP(,-1/(D12=$D$9:D11)/($F$9:F11=F12),$O$9:O11)))","v":0},102,null,{"$f":"L12+Главная_tb[[#This Row],[Приход]]-Главная_tb[[#This Row],[Расход]]","v":102}]

{"sheet":"Медикаменты","index":1,"n_rows":41,"n_cols":45,"rows_kept":41,"cut":false,"hidden":false,"merged":[]}
["Номер акта",null,null,null,null,"Поставщик","Контактные данные","Столбец1",null,null,"Наименование","Поставщик","Поставщик22","Договор","Столбец3","Единицы","Объем закупки","Получено от поставщика","Остаток",null,null,"Медикаменты",null,null,null,"Выдано",null,null,"Операции",null,null,"Единицы измерения",null,null,null,"Наименование","Столбец1",null,null,"Утилизация",null,null,"Номер акта","Получатель","Дата"]
[{"$f":"MAX(Главная_tb[Номер акта])+1","v":1},null,null,null,null,"АО \"Формула развития\"","Внести данные",null,null,null,"Рентгеновская пленка Carestream Health Dry View 5700 Laser Imager (20х25 см., 125 л.)",{"$f":"Договоры_tb[[#This Row],[Поставщик22]]&\" (дог. №\"&Договоры_tb[[#This Row],[Договор]]&\") \"&VLOOKUP(Договоры_tb[[#This Row],[Поставщик22]],Поставщики_tb[[Поставщик]:[Контактные данные]],2,)","v":"ООО \"МедЛайн\" (дог. №ЗК-2017-02-10-4) Внести данные"},"ООО \"МедЛайн\"","ЗК-2017-02-10-4",null,"уп.",10,{"$f":"SUMIFS(Главная_tb[Заказано],Главная_tb[Наименование],Договоры_tb[[#This Row],[Наименование]],Главная_tb[Выбор поставщика],Договоры_tb[[#This Row],[Поставщик]],Главная_tb[Операция],\"Заказано у поставщика\")+SUMIFS(Главная_tb[Заказано],Главная_tb[Наименование],Договоры_tb[[#This Row],[Наименование]],Главная_tb[Выбор поставщика],Договоры_tb[[#This Row],[Поставщик]],Главная_tb[Операция],\"Получено от поставщика\")","v":0},{"$f":"Договоры_tb[[#This Row],[Объем закупки]]-Договоры_tb[[#This Row],[Получено от поставщика]]","v":10},null,null,"Адреналин гидрохлорид (р-р, 0,1%, 1 мл.)",null,null,null,"Лор",null,null,"Начальный остаток",null,null,"шт.",null,null,null,"?водный раствор люголя",{"$f":"SUMIF(Договоры_tb[Наименование],ОстаткиЗаказ_tb[[#This Row],[Наименование]],Договоры_tb[Остаток])","v":0},null,null,"Истек срок годности",null,null,1,"Лор","2018-07-20"]
[null,null,null,null,null,"ИП Малков Федор Сергеевич","Внести данные",null,null,null,"Рентгеновская пленка Carestream Health Dry View 5700 Laser Imager (35х43 см., 125 л.)",{"$f":"Договоры_tb[[#This Row],[Поставщик22]]&\" (дог. №\"&Договоры_tb[[#This Row],[Договор]]&\") \"&VLOOKUP(Договоры_tb[[#This Row],[Поставщик22]],Поставщики_tb[[Поставщик]:[Контактные данные]],2,)","v":"ООО \"МедЛайн\" (дог. №ЗК-2017-02-10-4) Внести данные"},"ООО \"МедЛайн\"","ЗК-2017-02-10-4",null,"уп.",6,{"$f":"SUMIFS(Главная_tb[Заказано],Главная_tb[Наименование],Договоры_tb[[#This Row],[Наименование]],Главная_tb[Выбор поставщика],Договоры_tb[[#This Row],[Поставщик]],Главная_tb[Операция],\"Заказано у поставщика\")+SUMIFS(Главная_tb[Заказано],Главная_tb[Наименование],Договоры_tb[[#This Row],[Наименование]],Главная_tb[Выбор поставщика],Договоры_tb[[#This Row],[Поставщик]],Главная_tb[Операция],\"Получено от поставщика\")","v":0},{"$f":"Договоры_tb[[#This Row],[Объем закупки]]-Договоры_tb[[#This Row],[Получено от поставщика]]","v":6},null,null,"Бинт (нест., 10 м.х15 см.)",null,null,null,"Лаборатория",null,null,"Операции со складом",null,null,"фл.",null,null,null,"?Детский жирный крем",{"$f":"SUMIF(Договоры_tb[Наименование],ОстаткиЗаказ_tb[[#This Row],[Наименование]],Договоры_tb[Остаток])","v":0},null,null,null,null,null,2,"Хирург","2018-07-20"]
[null,null,null,null,null,"ООО \"Восток-Интертрейд\"","Внести данные",null,null,null,"Азопирам",{"$f":"Договоры_tb[[#This Row],[Поставщик22]]&\" (дог. №\"&Договоры_tb[[#This Row],[Договор]]&\") \"&VLOOKUP(Договоры_tb[[#This Row],[Поставщик22]],Поставщики_tb[[Поставщик]:[Контактные данные]],2,)","v":"ООО \"Лабора\" (дог. №ЗК-2017-03-20-13) Внести данные"},"ООО \"Лабора\"","ЗК-2017-03-20-13",null,"комп.",10,{"$f":"SUMIFS(Главная_tb[Заказано],Главная_tb[Наименование],Договоры_tb[[#This Row],[Наименование]],Главная_tb[Выбор поставщика],Договоры_tb[[#This Row],[Поставщик]],Главная_tb[Операция],\"Заказано у поставщика\")+SUMIFS(Главная_tb[Заказано],Главная_tb[Наименование],Договоры_tb[[#This Row],[Наименование]],Главная_tb[Выбор поставщика],Договоры_tb[[#This Row],[Поставщик]],Главная_tb[Операция],\"Получено от поставщика\")","v":0},{"$f":"Договоры_tb[[#This Row],[Объем закупки]]-Договоры_tb[[#This Row],[Получено от поставщика]]","v":10},null,null,"Бинт (нест., 5 м.х10 см.)",null,null,null,"Окулист",null,null,"Заказано у поставщика",null,null,"уп.",null,null,null,"?Иголка",{"$f":"SUMIF(Договоры_tb[Наименование],ОстаткиЗаказ_tb[[#This Row],[Наименование]],Договоры_tb[Остаток])","v":0},null,null,null,null,null,3,"Хирург","2018-07-20"]
[null,null,null,null,null,"ООО \"ИркутскМедсервис\"","Внести данные",null,null,null,null,null,null,null,null,null,null,null,null,null,null,"Бинт (стер. 10 м.х15 см.)",null,null,null,"Хирург",null,null,"Получено от поставщика",null,null,"снимок",null,null,null,"?Лекарственные стредства",{"$f":"SUMIF(Договоры_tb[Наименование],ОстаткиЗаказ_tb[[#This Row],[Наименование]],Договоры_tb[Остаток])","v":0},null,null,null,null,null,4,"Окулист","2018-07-20"]
[null,null,null,null,null,"ООО \"Лабора\"","Внести данные",null,null,null,null,null,null,null,null,null,null,null,null,null,null,"Бинт (стер. 5 м.х10 см.)",null,null,null,"ДШО",null,null,"Возврат на склад",null,null,"рул.",null,null,null,"?Пеленка одноразовая",{"$f":"SUMIF(Договоры_tb[Наименование],ОстаткиЗаказ_tb[[#This Row],[Наименование]],Договоры_tb[Остаток])","v":0},null,null,null,null,null,5,"Окулист","2018-07-20"]
[null,null,null,null,null,"ООО \"МедЛайн\"","Внести данные",null,null,null,null,null,null,null,null,null,null,null,null,null,null,"Контейнер для сбора мочи (стер., 100 мл.)",null,null,null,"Дневной стационар",null,null,"Ошибка",null,null,"пач.",null,null,null,"?Перевязочный метариал",{"$f":"SUMIF(Договоры_tb[Наименование],ОстаткиЗаказ_tb[[#This Row],[Наименование]],Договоры_tb[Остаток])","v":0},null,null,null,null,null,6,"Окулист","2018-07-15"]
[null,null,null,null,null,"ООО \"Сибмедком\"","Внести данные",null,null,null,null,null,null,null,null,null,null,null,null,null,null,"Контейнер для утилизации отходов МК-01 (однораз., желтый, 3 л.)",null,null,null,"Списание",null,null,null,null,null,"набор",null,null,null,"?Спирт",{"$f":"SUMIF(Договоры_tb[Наименование],ОстаткиЗаказ_tb[[#This Row],[Наименование]],Договоры_tb[Остаток])","v":0},null,null,null,null,null,7,"ОВЛ","2018-07-21"]
[null,null,null,null,null,null,null,null,null,null,null,null,null,null,null,null,null,null,null,null,null,"Контейнер для утилизации отходов МК-04 (многораз., бирюзовый, 7,5 л.).",null,null,null,"ОВЛ",null,null,null,null,null,"мл.",null,null,null,"?Тампон для задней тампонады",{"$f":"SUMIF(Договоры_tb[Наименование],ОстаткиЗаказ_tb[[#This Row],[Наименование]],Договоры_tb[Остаток])","v":0},null,null,null,null,null,8,"Окулист","2018-07-21"]
[null,null,null,null,null,null,null,null,null,null,null,null,null,null,null,null,null,null,null,null,null,"Контейнер для утилизации отходов МК-05 (многораз., желтый 50 л.)",null,null,null,null,null,null,null,null,null,"комп.",null,null,null,"?Термобумага для эхограмм",{"$f":"SUMIF(Договоры_tb[Наименование],ОстаткиЗаказ_tb[[#This Row],[Наименование]],Договоры_tb[Остаток])","v":0},null,null,null,null,null,9,"Лаборатория","2018-07-23"]
[null,null,null,null,null,null,null,null,null,null,null,null,null,null,null,null,null,null,null,null,null,"Контрольная сыворотка на РМП (отрицательный) (1 мл., 10 шт.)",null,null,null,null,null,null,null,null,null,"кан.",null,null,null,"?Турудна",{"$f":"SUMIF(Договоры_tb[Наименование],ОстаткиЗаказ_tb[[#This Row],[Наименование]],Договоры_tb[Остаток])","v":0}]
[null,null,null,null,null,null,null,null,null,null,null,null,null,null,null,null,null,null,null,null,null,"Контрольная сыворотка на РМП (положительная) (1 мл., 10 шт.)",null,null,null,null,null,null,null,null,null,null,null,null,null,"?Шовный материал",{"$f":"SUMIF(Договоры_tb[Наименование],ОстаткиЗаказ_tb[[#This Row],[Наименование]],Договоры_tb[Остаток])","v":0}]
[null,null,null,null,null,null,null,null,null,null,null,null,null,null,null,null,null,null,null,null,null,"Контрольная сыворотка на РМП (слабоположительный) (1 мл., 10 шт.)",null,null,null,null,null,null,null,null,null,null,null,null,null,"Адреналин гидрохлорид (р-р, 0,1%, 1 мл.)",{"$f":"SUMIF(Договоры_tb[Наименование],ОстаткиЗаказ_tb[[#This Row],[Наименование]],Договоры_tb[Остаток])","v":0}]
[null,null,null,null,null,null,null,null,null,null,null,null,null,null,null,null,null,null,null,null,null,"Контрольный материал гематологических анализаторов (2х2,5 норм. ур., 1х2,5 ср. ур., 1х2,5 выс. ур.)",null,null,null,null,null,null,null,null,null,null,null,null,null,"Азитромицин (таб., 125 мг, №6)",{"$f":"SUMIF(Договоры_tb[Наименование],ОстаткиЗаказ_tb[[#This Row],[Наименование]],Договоры_tb[Остаток])","v":0}]
[null,null,null,null,null,null,null,null,null,null,null,null,null,null,null,null,null,null,null,null,null,"Пакеты упаковочные для стерилизации СтериТ (150*250, 100 шт.)",null,null,null,null,null,null,null,null,null,null,null,null,null,"Азопирам (200 опред.)",{"$f":"SUMIF(Договоры_tb[Наименование],ОстаткиЗаказ_tb[[#This Row],[Наименование]],Договоры_tb[Остаток])","v":0}]
[null,null,null,null,null,null,null,null,null,null,null,null,null,null,null,null,null,null,null,null,null,"Пакеты упаковочные для стерилизации СтериТ (200*300, 100 шт.)",null,null,null,null,null,null,null,null,null,null,null,null,null,"Азур-эозин по Романовскому (р-р, 0,76%, окраска 6000, 1 л.)",{"$f":"SUMIF(Договоры_tb[Наименование],ОстаткиЗаказ_tb[[#This Row],[Наименование]],Договоры_tb[Остаток])","v":0}]
[null,null,null,null,null,null,null,null,null,null,null,null,null,null,null,null,null,null,null,null,null,"Пакеты упаковочные для стерилизации СтериТ (200*330, 100 шт.)",null,null,null,null,null,null,null,null,null,null,null,null,null,"Актовегин (р-р, 5 мл., №5)",{"$f":"SUMIF(Договоры_tb[Наименование],ОстаткиЗаказ_tb[[#This Row],[Наименование]],Договоры_tb[Остаток])","v":0}]
[null,null,null,null,null,null,null,null,null,null,null,null,null,null,null,null,null,null,null,null,null,"Пробирка Vacuette (8 мл., 50 шт.)",null,null,null,null,null,null,null,null,null,null,null,null,null,"Аллерген из библиотечной пыли для диагностики",{"$f":"SUMIF(Договоры_tb[Наименование],ОстаткиЗаказ_tb[[#This Row],[Наименование]],Договоры_tb[Остаток])","v":0}]
[null,null,null,null,null,null,null,null,null,null,null,null,null,null,null,null,null,null,null,null,null,"Пробирка Vacuette (9 мл., 50 шт.)",null,null,null,null,null,null,null,null,null,null,null,null,null,"Аллерген из дафнии для диагностики",{"$f":"SUMIF(Договоры_tb[Наименование],ОстаткиЗаказ_tb[[#This Row],[Наименование]],Договоры_tb[Остаток])","v":0}]
[null,null,null,null,null,null,null,null,null,null,null,null,null,null,null,null,null,null,null,null,null,"Пробирка вакуумная Cerebrum (4 мл., 50 шт.)",null,null,null,null,null,null,null,null,null,null,null,null,null,"Аллерген из домашней пыли для диагностики",{"$f":"SUMIF(Договоры_tb[Наименование],ОстаткиЗаказ_tb[[#This Row],[Наименование]],Договоры_tb[Остаток])","v":0}]
[null,null,null,null,null,null,null,null,null,null,null,null,null,null,null,null,null,null,null,null,null,"Пробирка вакуумная Cerebrum (5 мл., 50 шт.)",null,null,null,null,null,null,null,null,null,null,null,null,null,"Аллерген из клеща Dermatophagoides pteronissinus для диагностики и лечения",{"$f":"SUMIF(Договоры_tb[Наименование],ОстаткиЗаказ_tb[[#This Row],[Наименование]],Договоры_tb[Остаток])","v":0}]
[null,null,null,null,null,null,null,null,null,null,null,null,null,null,null,null,null,null,null,null,null,"Пробирка вакуумная Cerebrum (8 мл., 50 шт.)",null,null,null,null,null,null,null,null,null,null,null,null,null,"Аллерген из пера подушек для диагностики и лечения",{"$f":"SUMIF(Договоры_tb[Наименование],ОстаткиЗаказ_tb[[#This Row],[Наименование]],Договоры_tb[Остаток])","v":0}]
[null,null,null,null,null,null,null,null,null,null,null,null,null,null,null,null,null,null,null,null,null,"Пробирка микровета с ЭДТА (0,2 мл., 100 шт.)",null,null,null,null,null,null,null,null,null,null,null,null,null,"Аллерген из перхоти лошади для диагностики",{"$f":"SUMIF(Договоры_tb[Наименование],ОстаткиЗаказ_tb[[#This Row],[Наименование]],Договоры_tb[Остаток])","v":0}]
[null,null,null,null,null,null,null,null,null,null,null,null,null,null,null,null,null,null,null,null,null,"Шприц (1 мл.)",null,null,null,null,null,null,null,null,null,null,null,null,null,"Аллерген из пыльцы березы висячей для диагностики и лечения",{"$f":"SUMIF(Договоры_tb[Наименование],ОстаткиЗаказ_tb[[#This Row],[Наименование]],Договоры_tb[Остаток])","v":0}]
[null,null,null,null,null,null,null,null,null,null,null,null,null,null,null,null,null,null,null,null,null,"Шприц (10 мл.)",null,null,null,null,null,null,null,null,null,null,null,null,null,"Аллерген из пыльцы клена ясенелистного для диагностики и лечения",{"$f":"SUMIF(Договоры_tb[Наименование],ОстаткиЗаказ_tb[[#This Row],[Наименование]],Договоры_tb[Остаток])","v":0}]
[null,null,null,null,null,null,null,null,null,null,null,null,null,null,null,null,null,null,null,null,null,"Шприц (2 мл. 2 иглы)",null,null,null,null,null,null,null,null,null,null,null,null,null,"Аллерген из пыльцы лебеды татарской для диагностики и лечения",{"$f":"SUMIF(Договоры_tb[Наименование],ОстаткиЗаказ_tb[[#This Row],[Наименование]],Договоры_tb[Остаток])","v":0}]
[null,null,null,null,null,null,null,null,null,null,null,null,null,null,null,null,null,null,null,null,null,"Шприц (2 мл.)",null,null,null,null,null,null,null,null,null,null,null,null,null,"Аллерген из пыльцы луговых трав для диагностики и лечения",{"$f":"SUMIF(Договоры_tb[Наименование],ОстаткиЗаказ_tb[[#This Row],[Наименование]],Договоры_tb[Остаток])","v":0}]
[null,null,null,null,null,null,null,null,null,null,null,null,null,null,null,null,null,null,null,null,null,"Шприц (20 мл.)",null,null,null,null,null,null,null,null,null,null,null,null,null,"Аллерген из пыльцы одуванчика лекарственного для диагностики и лечения",{"$f":"SUMIF(Договоры_tb[Наименование],ОстаткиЗаказ_tb[[#This Row],[Наименование]],Договоры_tb[Остаток])","v":0}]
[null,null,null,null,null,null,null,null,null,null,null,null,null,null,null,null,null,null,null,null,null,"Шприц (5 мл. 2 иглы)",null,null,null,null,null,null,null,null,null,null,null,null,null,"Аллерген из пыльцы полыни горькой для диагностики и лечения",{"$f":"SUMIF(Договоры_tb[Наименование],ОстаткиЗаказ_tb[[#This Row],[Наименование]],Договоры_tb[Остаток])","v":0}]
[null,null,null,null,null,null,null,null,null,null,null,null,null,null,null,null,null,null,null,null,null,"Шприц (5 мл.)",null,null,null,null,null,null,null,null,null,null,null,null,null,"Аллерген эпидермальный из шерсти кошки для диагностики",{"$f":"SUMIF(Договоры_tb[Наименование],ОстаткиЗаказ_tb[[#This Row],[Наименование]],Договоры_tb[Остаток])","v":0}]
[null,null,null,null,null,null,null,null,null,null,null,null,null,null,null,null,null,null,null,null,null,null,null,null,null,null,null,null,null,null,null,null,null,null,null,"Аллерген эпидермальный из шерсти собаки для диагностики",{"$f":"SUMIF(Договоры_tb[Наименование],ОстаткиЗаказ_tb[[#This Row],[Наименование]],Договоры_tb[Остаток])","v":0}]
[null,null,null,null,null,null,null,null,null,null,null,null,null,null,null,null,null,null,null,null,null,null,null,null,null,null,null,null,null,null,null,null,null,null,null,"Амброксол (р-р для приема внутрь и ингаляций, 7,5 мг./1 мл., 100 мл.)",{"$f":"SUMIF(Договоры_tb[Наименование],ОстаткиЗаказ_tb[[#This Row],[Наименование]],Договоры_tb[Остаток])","v":0}]
[null,null,null,null,null,null,null,null,null,null,null,null,null,null,null,null,null,null,null,null,null,null,null,null,null,null,null,null,null,null,null,null,null,null,null,"Аммиака раствор (10%, 40 мл.)",{"$f":"SUMIF(Договоры_tb[Наименование],ОстаткиЗаказ_tb[[#This Row],[Наименование]],Договоры_tb[Остаток])","v":0}]
[null,null,null,null,null,null,null,null,null,null,null,null,null,null,null,null,null,null,null,null,null,null,null,null,null,null,null,null,null,null,null,null,null,null,null,"Антиген кардиолипиновый",{"$f":"SUMIF(Договоры_tb[Наименование],ОстаткиЗаказ_tb[[#This Row],[Наименование]],Договоры_tb[Остаток])","v":0}]
[null,null,null,null,null,null,null,null,null,null,null,null,null,null,null,null,null,null,null,null,null,null,null,null,null,null,null,null,null,null,null,null,null,null,null,"Баллон Политцера с оливами",{"$f":"SUMIF(Договоры_tb[Наименование],ОстаткиЗаказ_tb[[#This Row],[Наименование]],Договоры_tb[Остаток])","v":0}]
[null,null,null,null,null,null,null,null,null,null,null,null,null,null,null,null,null,null,null,null,null,null,null,null,null,null,null,null,null,null,null,null,null,null,null,"Берет медицинский (однораз.)",{"$f":"SUMIF(Договоры_tb[Наименование],ОстаткиЗаказ_tb[[#This Row],[Наименование]],Договоры_tb[Остаток])","v":0}]
[null,null,null,null,null,null,null,null,null,null,null,null,null,null,null,null,null,null,null,null,null,null,null,null,null,null,null,null,null,null,null,null,null,null,null,"Беродуал (р-р для ингаляций флакон/кап. по 20 мл.)",{"$f":"SUMIF(Договоры_tb[Наименование],ОстаткиЗаказ_tb[[#This Row],[Наименование]],Договоры_tb[Остаток])","v":0}]
[null,null,null,null,null,null,null,null,null,null,null,null,null,null,null,null,null,null,null,null,null,null,null,null,null,null,null,null,null,null,null,null,null,null,null,"Бинт (нест.)",{"$f":"SUMIF(Договоры_tb[Наименование],ОстаткиЗаказ_tb[[#This Row],[Наименование]],Договоры_tb[Остаток])","v":0}]
[null,null,null,null,null,null,null,null,null,null,null,null,null,null,null,null,null,null,null,null,null,null,null,null,null,null,null,null,null,null,null,null,null,null,null,"Бинт (стер.)",{"$f":"SUMIF(Договоры_tb[Наименование],ОстаткиЗаказ_tb[[#This Row],[Наименование]],Договоры_tb[Остаток])","v":0}]
[null,null,null,null,null,null,null,null,null,null,null,null,null,null,null,null,null,null,null,null,null,null,null,null,null,null,null,null,null,null,null,null,null,null,null,"Бинт (фикс., 4 см х 4 м.)",{"$f":"SUMIF(Договоры_tb[Наименование],ОстаткиЗаказ_tb[[#This Row],[Наименование]],Договоры_tb[Остаток])","v":0}]
[null,null,null,null,null,null,null,null,null,null,null,null,null,null,null,null,null,null,null,null,null,null,null,null,null,null,null,null,null,null,null,null,null,null,null,"Бинт (фикс., 6 см х 4 м.)",{"$f":"SUMIF(Договоры_tb[Наименование],ОстаткиЗаказ_tb[[#This Row],[Наименование]],Договоры_tb[Остаток])","v":0}]